[Event "Titled Tuesday Blitz April 4 Early 2023"]
[White "Gharibyan, Mamikon"]
[Black "Munoz, Francisco Javier"]
[WhiteFideId "13308300"]
[BlackFideId "128368"]
[WhiteElo "2445"]
[BlackElo "2383"]
[Result "1-0"]
[Round "08"]
[TimeControl "180+2"]
[Date "2023.04.04"]
[WhiteClock "0:00:10"]
[BlackClock "0:00:10"]

1. e4 {[%clk 0:03:00]}  e5 {[%clk 0:02:13]} 2. Nf3 {[%clk 0:02:59]}  Nc6 {[%clk 0:02:14]} 3. Bc4 {[%clk 0:02:55]}  Bc5 {[%clk 0:02:13]} 4. c3 {[%clk 0:02:54]}  Nf6 {[%clk 0:02:14]} 5. d3 {[%clk 0:02:55]}  a5 {[%clk 0:02:12]} 6. O-O {[%clk 0:02:54]}  d6 {[%clk 0:02:12]} 7. Re1 {[%clk 0:02:52]}  Ba7 {[%clk 0:02:10]} 8. Nbd2 {[%clk 0:02:48]}  h6 {[%clk 0:02:10]} 9. Nf1 {[%clk 0:02:47]}  O-O {[%clk 0:02:11]} 10. Ng3 {[%clk 0:02:43]}  Re8 {[%clk 0:02:11]} 11. h3 {[%clk 0:02:40]}  Be6 {[%clk 0:02:11]} 12. Bxe6 {[%clk 0:02:39]}  Rxe6 {[%clk 0:02:12]} 13. d4 {[%clk 0:02:38]}  d5 {[%clk 0:02:05]} 14. exd5 {[%clk 0:02:19]}  Qxd5 {[%clk 0:02:01]} 15. dxe5 {[%clk 0:02:13]}  Qxd1 {[%clk 0:01:56]} 16. Rxd1 {[%clk 0:02:14]}  Nxe5 {[%clk 0:01:52]} 17. Nxe5 {[%clk 0:02:15]}  Rxe5 {[%clk 0:01:53]} 18. Bf4 {[%clk 0:02:15]}  Re7 {[%clk 0:01:49]} 19. Kf1 {[%clk 0:02:02]}  g5 {[%clk 0:01:48]} 20. Nf5 {[%clk 0:02:00]}  Re6 {[%clk 0:01:06]} 21. Bxc7 {[%clk 0:01:46]}  h5 {[%clk 0:00:45]} 22. f3 {[%clk 0:01:25]}  g4 {[%clk 0:00:43]} 23. Bg3 {[%clk 0:01:13]}  Kh7 {[%clk 0:00:39]} 24. Rd6 {[%clk 0:01:09]}  Rae8 {[%clk 0:00:38]} 25. Rxe6 {[%clk 0:01:02]}  Rxe6 {[%clk 0:00:39]} 26. Rd1 {[%clk 0:00:59]}  gxf3 {[%clk 0:00:31]} 27. gxf3 {[%clk 0:00:59]}  Kg6 {[%clk 0:00:31]} 28. Nd4 {[%clk 0:00:57]}  Re3 {[%clk 0:00:20]} 29. Kf2 {[%clk 0:00:46]}  Re8 {[%clk 0:00:20]} 30. Rg1 {[%clk 0:00:38]}  Bxd4+ {[%clk 0:00:18]} 31. cxd4 {[%clk 0:00:38]}  Kf5 {[%clk 0:00:19]} 32. Rc1 {[%clk 0:00:31]}  Nd5 {[%clk 0:00:17]} 33. Rc5 {[%clk 0:00:31]}  Ke6 {[%clk 0:00:17]} 34. Rxa5 {[%clk 0:00:30]}  Rc8 {[%clk 0:00:16]} 35. Rc5 {[%clk 0:00:30]}  Ra8 {[%clk 0:00:16]} 36. a3 {[%clk 0:00:29]}  Ra6 {[%clk 0:00:16]} 37. Ke2 {[%clk 0:00:27]}  Rb6 {[%clk 0:00:16]} 38. Rc2 {[%clk 0:00:19]}  Rb3 {[%clk 0:00:16]} 39. h4 {[%clk 0:00:18]}  Re3+ {[%clk 0:00:16]} 40. Kf2 {[%clk 0:00:18]}  Rd3 {[%clk 0:00:16]} 41. Re2+ {[%clk 0:00:15]}  Kd7 {[%clk 0:00:14]} 42. Re5 {[%clk 0:00:15]}  Ne7 {[%clk 0:00:14]} 43. Rxh5 {[%clk 0:00:14]}  Rxd4 {[%clk 0:00:14]} 44. Rb5 {[%clk 0:00:14]}  Kc6 {[%clk 0:00:12]} 45. Rb4 {[%clk 0:00:14]}  Rd2+ {[%clk 0:00:11]} 46. Ke1 {[%clk 0:00:11]}  Rg2 {[%clk 0:00:11]} 47. Bf2 {[%clk 0:00:11]}  Nd5 {[%clk 0:00:10]} 48. Rg4 {[%clk 0:00:10]}  f5 {[%clk 0:00:10]} 49. Rxg2 {[%clk 0:00:10]} 1-0


[Site "https://www.chess.com"]

[Event "Titled Tuesday Blitz April 4 Early 2023"]
[White "Hasangatin, Ramil"]
[Black "Janaszak, Dawid"]
[WhiteFideId "4122160"]
[BlackFideId "1119206"]
[WhiteElo "2275"]
[BlackElo "2220"]
[Result "0-1"]
[Round "08"]
[TimeControl "180+2"]
[Date "2023.04.04"]
[WhiteClock "0:02:14"]
[BlackClock "0:02:08"]

1. e4 {[%clk 0:03:00]}  c5 {[%clk 0:02:59]} 2. Nf3 {[%clk 0:02:56]}  Nc6 {[%clk 0:02:59]} 3. Bb5 {[%clk 0:02:55]}  e5 {[%clk 0:02:57]} 4. O-O {[%clk 0:02:52]}  Nge7 {[%clk 0:02:57]} 5. c3 {[%clk 0:02:51]}  g6 {[%clk 0:02:56]} 6. d4 {[%clk 0:02:51]}  cxd4 {[%clk 0:02:57]} 7. cxd4 {[%clk 0:02:52]}  exd4 {[%clk 0:02:58]} 8. Nxd4 {[%clk 0:02:51]}  Bg7 {[%clk 0:02:58]} 9. Be3 {[%clk 0:02:50]}  O-O {[%clk 0:02:58]} 10. Nc3 {[%clk 0:02:49]}  d5 {[%clk 0:02:41]} 11. exd5 {[%clk 0:02:45]}  Nxd5 {[%clk 0:02:41]} 12. Nxc6 {[%clk 0:02:43]}  bxc6 {[%clk 0:02:41]} 13. Bxc6 {[%clk 0:02:40]}  Nxe3 {[%clk 0:02:36]} 14. fxe3 {[%clk 0:02:18]}  Rb8 {[%clk 0:02:17]} 15. Qxd8 {[%clk 0:02:17]}  Rxd8 {[%clk 0:02:18]} 16. Bd5 {[%clk 0:02:18]}  Rxb2 {[%clk 0:02:15]} 17. Bxf7+ {[%clk 0:02:17]}  Kh8 {[%clk 0:02:15]} 18. Rac1 {[%clk 0:02:17]}  Ba6 {[%clk 0:02:09]} 19. Rf2 {[%clk 0:02:14]}  Rxf2 {[%clk 0:02:08]} 20. Kxf2 {[%clk 0:02:14]}  Rf8 {[%clk 0:02:08]} 0-1


[Site "https://www.chess.com"]

[Event "Titled Tuesday Blitz April 4 Early 2023"]
[White "Gurevich, Dmitry"]
[Black "Kowalczyk, Pawel"]
[WhiteFideId "2000407"]
[BlackFideId "1130641"]
[WhiteElo "2506"]
[BlackElo "2324"]
[Result "0-1"]
[Round "08"]
[TimeControl "180+2"]
[Date "2023.04.04"]
[WhiteClock "0:00:01"]
[BlackClock "0:00:47"]

1. d4 {[%clk 0:03:00]}  b5 {[%clk 0:02:59]} 2. Nf3 {[%clk 0:02:57]}  Bb7 {[%clk 0:03:00]} 3. e3 {[%clk 0:02:57]}  a6 {[%clk 0:02:59]} 4. a4 {[%clk 0:02:55]}  b4 {[%clk 0:02:59]} 5. Bd3 {[%clk 0:02:55]}  Nf6 {[%clk 0:02:59]} 6. O-O {[%clk 0:02:54]}  e6 {[%clk 0:02:58]} 7. Qe2 {[%clk 0:02:54]}  d5 {[%clk 0:02:56]} 8. c4 {[%clk 0:02:50]}  bxc3 {[%clk 0:02:54]} 9. Nxc3 {[%clk 0:02:47]}  Be7 {[%clk 0:02:52]} 10. Ne5 {[%clk 0:02:45]}  Nbd7 {[%clk 0:02:50]} 11. f4 {[%clk 0:02:45]}  c5 {[%clk 0:02:50]} 12. Kh1 {[%clk 0:02:39]}  Qb6 {[%clk 0:02:48]} 13. a5 {[%clk 0:02:36]}  Qa7 {[%clk 0:02:48]} 14. Ra4 {[%clk 0:02:26]}  Rc8 {[%clk 0:02:44]} 15. f5 {[%clk 0:02:21]}  c4 {[%clk 0:02:21]} 16. Nxd7 {[%clk 0:02:06]}  Nxd7 {[%clk 0:02:17]} 17. fxe6 {[%clk 0:02:02]}  fxe6 {[%clk 0:02:16]} 18. Qh5+ {[%clk 0:02:00]}  Kd8 {[%clk 0:02:16]} 19. Bc2 {[%clk 0:01:45]}  Nf6 {[%clk 0:02:13]} 20. Qh3 {[%clk 0:01:43]}  Bc6 {[%clk 0:02:12]} 21. Ra1 {[%clk 0:01:40]}  Bd7 {[%clk 0:02:12]} 22. Qg3 {[%clk 0:01:36]}  g6 {[%clk 0:02:06]} 23. e4 {[%clk 0:01:32]}  Nh5 {[%clk 0:02:00]} 24. Qe5 {[%clk 0:01:26]}  Rf8 {[%clk 0:01:56]} 25. Rxf8+ {[%clk 0:01:24]}  Bxf8 {[%clk 0:01:57]} 26. Bg5+ {[%clk 0:01:17]}  Ke8 {[%clk 0:01:52]} 27. Nxd5 {[%clk 0:01:12]}  Bg7 {[%clk 0:01:51]} 28. Nf6+ {[%clk 0:00:51]}  Bxf6 {[%clk 0:01:47]} 29. Bxf6 {[%clk 0:00:51]}  Qb8 {[%clk 0:01:45]} 30. Qxb8 {[%clk 0:00:29]}  Rxb8 {[%clk 0:01:45]} 31. Be5 {[%clk 0:00:29]}  Rxb2 {[%clk 0:01:45]} 32. Rc1 {[%clk 0:00:28]}  Kf7 {[%clk 0:01:42]} 33. Bd1 {[%clk 0:00:19]}  Nf6 {[%clk 0:01:39]} 34. Bf3 {[%clk 0:00:18]}  Bb5 {[%clk 0:01:37]} 35. g4 {[%clk 0:00:16]}  Nd7 {[%clk 0:01:35]} 36. Bd6 {[%clk 0:00:15]}  Rf2 {[%clk 0:01:32]} 37. Bg2 {[%clk 0:00:14]}  h6 {[%clk 0:01:27]} 38. Kg1 {[%clk 0:00:14]}  Ra2 {[%clk 0:01:26]} 39. Rf1+ {[%clk 0:00:13]}  Ke8 {[%clk 0:01:25]} 40. Rc1 {[%clk 0:00:12]}  Rxa5 {[%clk 0:01:22]} 41. e5 {[%clk 0:00:11]}  g5 {[%clk 0:01:13]} 42. d5 {[%clk 0:00:11]}  exd5 {[%clk 0:01:11]} 43. Bxd5 {[%clk 0:00:11]}  Ra4 {[%clk 0:01:12]} 44. Rf1 {[%clk 0:00:08]}  c3 {[%clk 0:01:09]} 45. Rc1 {[%clk 0:00:07]}  Rxg4+ {[%clk 0:01:08]} 46. Kf2 {[%clk 0:00:07]}  Rd4 {[%clk 0:01:07]} 47. Be6 {[%clk 0:00:06]}  Nxe5 {[%clk 0:00:58]} 48. Bxe5 {[%clk 0:00:05]}  Re4 {[%clk 0:00:58]} 49. Re1 {[%clk 0:00:05]}  Rxe1 {[%clk 0:00:57]} 50. Kxe1 {[%clk 0:00:05]}  c2 {[%clk 0:00:58]} 51. Kd2 {[%clk 0:00:05]}  Ke7 {[%clk 0:00:59]} 52. Bb3 {[%clk 0:00:04]}  a5 {[%clk 0:00:57]} 53. Kxc2 {[%clk 0:00:04]}  a4 {[%clk 0:00:57]} 54. Ba2 {[%clk 0:00:04]}  Bc6 {[%clk 0:00:56]} 55. Kc3 {[%clk 0:00:04]}  h5 {[%clk 0:00:56]} 56. Kd4 {[%clk 0:00:04]}  Bf3 {[%clk 0:00:56]} 57. Ke3 {[%clk 0:00:04]}  Bd1 {[%clk 0:00:56]} 58. Bc3 {[%clk 0:00:04]}  Bc2 {[%clk 0:00:53]} 59. Kd4 {[%clk 0:00:03]}  Kf6 {[%clk 0:00:52]} 60. Ke3+ {[%clk 0:00:02]}  Kf5 {[%clk 0:00:52]} 61. Be1 {[%clk 0:00:02]}  h4 {[%clk 0:00:48]} 62. Bc4 {[%clk 0:00:01]}  Kg4 {[%clk 0:00:47]} 0-1


[Site "https://www.chess.com"]

[Event "Titled Tuesday Blitz April 4 Early 2023"]
[White "Manukyan, Artyom"]
[Black "Sokolovsky, Yahli"]
[WhiteFideId "13305786"]
[BlackFideId "2820242"]
[WhiteElo "2078"]
[BlackElo "2316"]
[Result "1-0"]
[Round "08"]
[TimeControl "180+2"]
[Date "2023.04.04"]
[WhiteClock "0:00:22"]
[BlackClock "0:00:04"]

1. e4 {[%clk 0:02:56]}  g6 {[%clk 0:02:57]} 2. d4 {[%clk 0:02:52]}  Bg7 {[%clk 0:02:58]} 3. Nc3 {[%clk 0:02:52]}  d6 {[%clk 0:02:58]} 4. f4 {[%clk 0:02:53]}  Nf6 {[%clk 0:02:52]} 5. Nf3 {[%clk 0:02:39]}  Bg4 {[%clk 0:02:49]} 6. h3 {[%clk 0:02:23]}  Bxf3 {[%clk 0:02:48]} 7. Qxf3 {[%clk 0:02:24]}  Nc6 {[%clk 0:02:43]} 8. Be3 {[%clk 0:02:22]}  e5 {[%clk 0:02:39]} 9. Bb5 {[%clk 0:02:21]}  O-O {[%clk 0:02:21]} 10. Bxc6 {[%clk 0:02:04]}  bxc6 {[%clk 0:02:22]} 11. dxe5 {[%clk 0:01:56]}  dxe5 {[%clk 0:02:23]} 12. f5 {[%clk 0:01:53]}  Rb8 {[%clk 0:01:49]} 13. b3 {[%clk 0:01:51]}  Qd6 {[%clk 0:01:39]} 14. O-O {[%clk 0:01:49]}  Qb4 {[%clk 0:01:26]} 15. Bxa7 {[%clk 0:01:45]}  Rbd8 {[%clk 0:01:19]} 16. a3 {[%clk 0:01:42]}  Qa5 {[%clk 0:01:12]} 17. Qe3 {[%clk 0:01:40]}  Bh6 {[%clk 0:00:53]} 18. Qxh6 {[%clk 0:01:35]}  Qxa7+ {[%clk 0:00:51]} 19. Kh2 {[%clk 0:01:35]}  Qd4 {[%clk 0:00:41]} 20. Rf3 {[%clk 0:01:27]}  Qd2 {[%clk 0:00:39]} 21. Qh4 {[%clk 0:01:08]}  Nh5 {[%clk 0:00:27]} 22. Rd1 {[%clk 0:01:05]}  Qxd1 {[%clk 0:00:17]} 23. Nxd1 {[%clk 0:01:06]}  Rxd1 {[%clk 0:00:18]} 24. f6 {[%clk 0:01:05]}  Rd6 {[%clk 0:00:07]} 25. Qg5 {[%clk 0:00:55]}  Re8 {[%clk 0:00:07]} 26. Rd3 {[%clk 0:00:35]}  Rxf6 {[%clk 0:00:05]} 27. a4 {[%clk 0:00:32]}  Rf2 {[%clk 0:00:03]} 28. Rd8 {[%clk 0:00:23]}  Rxd8 {[%clk 0:00:03]} 29. Qxd8+ {[%clk 0:00:24]}  Kg7 {[%clk 0:00:04]} 30. Qxc7 {[%clk 0:00:22]} 1-0


[Site "https://www.chess.com"]

[Event "Titled Tuesday Blitz April 4 Early 2023"]
[White "a-z30"]
[Black "Domingo Nunez, Alejandro"]
[BlackFideId "22245561"]
[WhiteElo "2454"]
[BlackElo "2291"]
[Result "0-1"]
[Round "08"]
[TimeControl "180+2"]
[Date "2023.04.04"]
[WhiteClock "0:00:03"]
[BlackClock "0:00:02"]

1. d3 {[%clk 0:02:59]}  g6 {[%clk 0:02:56]} 2. Nf3 {[%clk 0:02:57]}  Bg7 {[%clk 0:02:57]} 3. g3 {[%clk 0:02:57]}  d5 {[%clk 0:02:54]} 4. Bg2 {[%clk 0:02:58]}  c5 {[%clk 0:02:55]} 5. O-O {[%clk 0:02:58]}  Nc6 {[%clk 0:02:54]} 6. c4 {[%clk 0:02:58]}  d4 {[%clk 0:02:54]} 7. a3 {[%clk 0:02:57]}  a5 {[%clk 0:02:53]} 8. e3 {[%clk 0:02:39]}  Nf6 {[%clk 0:02:52]} 9. exd4 {[%clk 0:02:38]}  cxd4 {[%clk 0:02:52]} 10. Re1 {[%clk 0:02:26]}  O-O {[%clk 0:02:52]} 11. Ne5 {[%clk 0:02:24]}  Nxe5 {[%clk 0:02:51]} 12. Rxe5 {[%clk 0:02:25]}  Nd7 {[%clk 0:02:51]} 13. Rb5 {[%clk 0:02:18]}  Qc7 {[%clk 0:02:44]} 14. Nd2 {[%clk 0:02:13]}  Ne5 {[%clk 0:02:38]} 15. Ne4 {[%clk 0:02:08]}  Bg4 {[%clk 0:02:31]} 16. Qb3 {[%clk 0:01:49]}  Rab8 {[%clk 0:00:56]} 17. Bf4 {[%clk 0:01:38]}  f6 {[%clk 0:00:56]} 18. Bxe5 {[%clk 0:01:24]}  fxe5 {[%clk 0:00:56]} 19. c5+ {[%clk 0:01:24]}  Kh8 {[%clk 0:00:56]} 20. Ng5 {[%clk 0:01:23]}  Qd7 {[%clk 0:00:45]} 21. Rxb7 {[%clk 0:01:08]}  Rxb7 {[%clk 0:00:37]} 22. Qxb7 {[%clk 0:01:09]}  Qf5 {[%clk 0:00:38]} 23. Ne4 {[%clk 0:01:08]}  Be2 {[%clk 0:00:32]} 24. c6 {[%clk 0:00:38]}  Bxd3 {[%clk 0:00:32]} 25. c7 {[%clk 0:00:35]}  Bh6 {[%clk 0:00:29]} 26. Rf1 {[%clk 0:00:21]}  Be2 {[%clk 0:00:05]} 27. b4 {[%clk 0:00:14]}  axb4 {[%clk 0:00:04]} 28. axb4 {[%clk 0:00:14]}  d3 {[%clk 0:00:05]} 29. Qb6 {[%clk 0:00:04]}  d2 {[%clk 0:00:04]} 30. Nxd2 {[%clk 0:00:03]}  Bxd2 {[%clk 0:00:05]} 31. Qc5 {[%clk 0:00:03]}  Bxf1 {[%clk 0:00:02]} 32. Bxf1 {[%clk 0:00:04]}  e4 {[%clk 0:00:03]} 33. b5 {[%clk 0:00:03]}  Qxc5 {[%clk 0:00:02]} 34. c8=Q {[%clk 0:00:03]}  Qxf2+ {[%clk 0:00:02]} 0-1


[Site "https://www.chess.com"]

[Event "Titled Tuesday Blitz April 4 Early 2023"]
[White "Seemann, Jakub"]
[Black "nicolasulaneobelassi"]
[WhiteFideId "21874697"]
[WhiteElo "2364"]
[BlackElo "2321"]
[Result "1-0"]
[Round "08"]
[TimeControl "180+2"]
[Date "2023.04.04"]
[WhiteClock "0:00:52"]
[BlackClock "0:00:19"]

1. g3 {[%clk 0:03:00]}  e5 {[%clk 0:02:58]} 2. Bg2 {[%clk 0:03:01]}  d5 {[%clk 0:02:58]} 3. c4 {[%clk 0:03:00]}  dxc4 {[%clk 0:02:53]} 4. Na3 {[%clk 0:02:58]}  Bxa3 {[%clk 0:02:52]} 5. bxa3 {[%clk 0:02:57]}  Nc6 {[%clk 0:02:52]} 6. Bb2 {[%clk 0:02:57]}  Nf6 {[%clk 0:02:51]} 7. Rc1 {[%clk 0:02:57]}  Be6 {[%clk 0:02:50]} 8. Nf3 {[%clk 0:02:56]}  Qd6 {[%clk 0:02:30]} 9. O-O {[%clk 0:02:39]}  O-O {[%clk 0:02:29]} 10. Ne1 {[%clk 0:02:27]}  Rad8 {[%clk 0:02:25]} 11. d3 {[%clk 0:02:25]}  cxd3 {[%clk 0:02:22]} 12. Nxd3 {[%clk 0:02:26]}  Bd5 {[%clk 0:02:10]} 13. Qa4 {[%clk 0:01:56]}  Bxg2 {[%clk 0:02:06]} 14. Kxg2 {[%clk 0:01:57]}  Qd5+ {[%clk 0:02:02]} 15. Kg1 {[%clk 0:01:57]}  Ne4 {[%clk 0:01:34]} 16. Rfd1 {[%clk 0:01:51]}  Nd4 {[%clk 0:01:20]} 17. Bxd4 {[%clk 0:01:48]}  exd4 {[%clk 0:01:20]} 18. Nf4 {[%clk 0:01:37]}  Qd6 {[%clk 0:01:05]} 19. Qb4 {[%clk 0:01:30]}  c5 {[%clk 0:01:01]} 20. Qxb7 {[%clk 0:01:27]}  Rd7 {[%clk 0:01:00]} 21. Qxe4 {[%clk 0:01:25]}  Re7 {[%clk 0:00:56]} 22. Qc2 {[%clk 0:01:22]}  Rc8 {[%clk 0:00:53]} 23. Qf5 {[%clk 0:01:13]}  Ree8 {[%clk 0:00:46]} 24. Rd2 {[%clk 0:01:09]}  g6 {[%clk 0:00:46]} 25. Qd5 {[%clk 0:01:08]}  Qb6 {[%clk 0:00:42]} 26. Nd3 {[%clk 0:00:58]}  Red8 {[%clk 0:00:41]} 27. Qc4 {[%clk 0:00:58]}  Qa5 {[%clk 0:00:41]} 28. Rdc2 {[%clk 0:00:57]}  Qxa3 {[%clk 0:00:39]} 29. Nxc5 {[%clk 0:00:57]}  Rd6 {[%clk 0:00:33]} 30. Qb3 {[%clk 0:00:54]}  Qa5 {[%clk 0:00:25]} 31. Nb7 {[%clk 0:00:51]}  Rxc2 {[%clk 0:00:19]} 32. Qxc2 {[%clk 0:00:52]} 1-0


[Site "https://www.chess.com"]

[Event "Titled Tuesday Blitz April 4 Early 2023"]
[White "Hayrapetyan, Artavazd R."]
[Black "Hirneise, Jens"]
[WhiteFideId "13304240"]
[BlackFideId "24614734"]
[WhiteElo "2417"]
[BlackElo "2345"]
[Result "1-0"]
[Round "08"]
[TimeControl "180+2"]
[Date "2023.04.04"]
[WhiteClock "0:01:25"]
[BlackClock "0:01:12"]

1. b3 {[%clk 0:02:59]}  d5 {[%clk 0:02:58]} 2. Bb2 {[%clk 0:03:00]}  Nd7 {[%clk 0:02:57]} 3. Nf3 {[%clk 0:03:00]}  Ngf6 {[%clk 0:02:57]} 4. e3 {[%clk 0:03:01]}  e6 {[%clk 0:02:56]} 5. d4 {[%clk 0:03:02]}  Bb4+ {[%clk 0:02:53]} 6. c3 {[%clk 0:03:01]}  Bd6 {[%clk 0:02:53]} 7. c4 {[%clk 0:03:02]}  c6 {[%clk 0:02:48]} 8. Nc3 {[%clk 0:03:01]}  O-O {[%clk 0:02:47]} 9. Bd3 {[%clk 0:03:01]}  Re8 {[%clk 0:02:46]} 10. O-O {[%clk 0:03:01]}  a6 {[%clk 0:02:44]} 11. Rc1 {[%clk 0:03:01]}  dxc4 {[%clk 0:02:40]} 12. bxc4 {[%clk 0:02:58]}  e5 {[%clk 0:02:39]} 13. Bc2 {[%clk 0:02:55]}  Qe7 {[%clk 0:02:35]} 14. Re1 {[%clk 0:02:54]}  b5 {[%clk 0:02:26]} 15. c5 {[%clk 0:02:21]}  Bc7 {[%clk 0:02:12]} 16. h3 {[%clk 0:02:21]}  a5 {[%clk 0:02:08]} 17. a3 {[%clk 0:02:07]}  b4 {[%clk 0:02:06]} 18. axb4 {[%clk 0:02:02]}  axb4 {[%clk 0:02:07]} 19. Ne4 {[%clk 0:01:57]}  Ra2 {[%clk 0:01:49]} 20. Rb1 {[%clk 0:01:57]}  Nd5 {[%clk 0:01:42]} 21. Bb3 {[%clk 0:01:44]}  Ra8 {[%clk 0:01:38]} 22. Nd6 {[%clk 0:01:41]}  Rd8 {[%clk 0:01:27]} 23. Nxe5 {[%clk 0:01:34]}  Bxd6 {[%clk 0:01:24]} 24. Nxc6 {[%clk 0:01:32]}  Qe8 {[%clk 0:01:22]} 25. cxd6 {[%clk 0:01:27]}  N7f6 {[%clk 0:01:19]} 26. Nxd8 {[%clk 0:01:25]}  Qxd8 {[%clk 0:01:20]} 27. e4 {[%clk 0:01:25]}  Nc3 {[%clk 0:01:20]} 28. Bxc3 {[%clk 0:01:25]}  bxc3 {[%clk 0:01:21]} 29. e5 {[%clk 0:01:26]}  Nd7 {[%clk 0:01:18]} 30. Qf3 {[%clk 0:01:25]}  Ra7 {[%clk 0:01:11]} 31. Qxf7+ {[%clk 0:01:24]}  Kh8 {[%clk 0:01:12]} 32. e6 {[%clk 0:01:25]} 1-0


[Site "https://www.chess.com"]

[Event "Titled Tuesday Blitz April 4 Early 2023"]
[White "Omelja, Artem"]
[Black "Maksimovic, Bojan"]
[WhiteFideId "14119846"]
[BlackFideId "14408120"]
[WhiteElo "2404"]
[BlackElo "2468"]
[Result "0-1"]
[Round "08"]
[TimeControl "180+2"]
[Date "2023.04.04"]
[WhiteClock "0:01:57"]
[BlackClock "0:02:28"]

1. e4 {[%clk 0:03:00]}  c5 {[%clk 0:02:59]} 2. Nf3 {[%clk 0:02:59]}  Nc6 {[%clk 0:02:59]} 3. Bb5 {[%clk 0:02:59]}  e6 {[%clk 0:03:00]} 4. O-O {[%clk 0:02:55]}  Nge7 {[%clk 0:03:00]} 5. c3 {[%clk 0:02:54]}  a6 {[%clk 0:03:00]} 6. Ba4 {[%clk 0:02:55]}  b5 {[%clk 0:03:01]} 7. Bc2 {[%clk 0:02:54]}  Bb7 {[%clk 0:03:02]} 8. d4 {[%clk 0:02:54]}  cxd4 {[%clk 0:03:02]} 9. Nxd4 {[%clk 0:02:55]}  Ng6 {[%clk 0:03:00]} 10. Re1 {[%clk 0:02:54]}  Be7 {[%clk 0:03:00]} 11. Nd2 {[%clk 0:02:53]}  O-O {[%clk 0:02:59]} 12. N2f3 {[%clk 0:02:51]}  Rc8 {[%clk 0:02:59]} 13. g3 {[%clk 0:02:49]}  b4 {[%clk 0:02:53]} 14. Bd2 {[%clk 0:02:48]}  bxc3 {[%clk 0:02:51]} 15. Bxc3 {[%clk 0:02:48]}  Qb6 {[%clk 0:02:49]} 16. Qd2 {[%clk 0:02:42]}  Nce5 {[%clk 0:02:48]} 17. Rad1 {[%clk 0:02:27]}  Bc5 {[%clk 0:02:39]} 18. Kg2 {[%clk 0:02:28]}  f5 {[%clk 0:02:38]} 19. Nxe5 {[%clk 0:02:21]}  Nxe5 {[%clk 0:02:36]} 20. f4 {[%clk 0:02:21]}  fxe4 {[%clk 0:02:35]} 21. Bxe4 {[%clk 0:02:17]}  Bxe4+ {[%clk 0:02:35]} 22. Rxe4 {[%clk 0:02:18]}  Qb7 {[%clk 0:02:36]} 23. Re1 {[%clk 0:02:13]}  Nc4 {[%clk 0:02:28]} 24. Qd3 {[%clk 0:02:02]}  Nd6 {[%clk 0:02:29]} 25. Nf3 {[%clk 0:02:02]}  Nxe4 {[%clk 0:02:29]} 26. Rxe4 {[%clk 0:02:03]}  Qd5 {[%clk 0:02:28]} 27. Qd4 {[%clk 0:01:57]}  Bxd4 {[%clk 0:02:28]} 0-1


[Site "https://www.chess.com"]

[Event "Titled Tuesday Blitz April 4 Early 2023"]
[White "Urazayev, Arystanbek"]
[Black "Vakhidov, Shahzod"]
[WhiteFideId "13709810"]
[BlackFideId "14205270"]
[WhiteElo "2449"]
[BlackElo "2212"]
[Result "1-0"]
[Round "08"]
[TimeControl "180+2"]
[Date "2023.04.04"]
[WhiteClock "0:02:14"]
[BlackClock "0:01:25"]

1. e4 {[%clk 0:03:00]}  c5 {[%clk 0:03:00]} 2. Nf3 {[%clk 0:03:01]}  g6 {[%clk 0:03:00]} 3. c3 {[%clk 0:03:00]}  d5 {[%clk 0:03:00]} 4. exd5 {[%clk 0:03:01]}  Qxd5 {[%clk 0:02:59]} 5. d4 {[%clk 0:03:01]}  Bg7 {[%clk 0:02:59]} 6. Na3 {[%clk 0:03:01]}  Nf6 {[%clk 0:02:45]} 7. Bc4 {[%clk 0:03:00]}  Qe4+ {[%clk 0:02:38]} 8. Be3 {[%clk 0:03:00]}  O-O {[%clk 0:02:27]} 9. O-O {[%clk 0:02:55]}  cxd4 {[%clk 0:02:25]} 10. Bxd4 {[%clk 0:02:55]}  Nc6 {[%clk 0:02:22]} 11. Re1 {[%clk 0:02:54]}  Qf5 {[%clk 0:02:17]} 12. Nb5 {[%clk 0:02:39]}  a6 {[%clk 0:01:56]} 13. Nc7 {[%clk 0:02:33]}  Rb8 {[%clk 0:01:56]} 14. Nd5 {[%clk 0:02:18]}  Nxd4 {[%clk 0:01:47]} 15. Nxe7+ {[%clk 0:02:17]}  Kh8 {[%clk 0:01:46]} 16. Nxf5 {[%clk 0:02:17]}  Nxf5 {[%clk 0:01:46]} 17. Ne5 {[%clk 0:02:17]}  Be6 {[%clk 0:01:43]} 18. Bxe6 {[%clk 0:02:15]}  fxe6 {[%clk 0:01:44]} 19. Qb3 {[%clk 0:02:15]}  Nd5 {[%clk 0:01:41]} 20. Nd7 {[%clk 0:02:15]}  Rbd8 {[%clk 0:01:29]} 21. Nxf8 {[%clk 0:02:15]}  Rxf8 {[%clk 0:01:30]} 22. Rxe6 {[%clk 0:02:15]}  Nf4 {[%clk 0:01:30]} 23. Re4 {[%clk 0:02:15]}  Nh4 {[%clk 0:01:29]} 24. Rxf4 {[%clk 0:02:13]}  Rxf4 {[%clk 0:01:28]} 25. Qxb7 {[%clk 0:02:14]}  Rf8 {[%clk 0:01:28]} 26. Re1 {[%clk 0:02:12]}  Nf5 {[%clk 0:01:26]} 27. Qd7 {[%clk 0:02:12]}  h5 {[%clk 0:01:25]} 28. Re8 {[%clk 0:02:11]}  Rxe8 {[%clk 0:01:24]} 29. Qxe8+ {[%clk 0:02:12]}  Kh7 {[%clk 0:01:24]} 30. Qa8 {[%clk 0:02:13]}  Nh6 {[%clk 0:01:24]} 31. Qxa6 {[%clk 0:02:13]}  Nf5 {[%clk 0:01:25]} 32. a4 {[%clk 0:02:14]} 1-0


[Site "https://www.chess.com"]